Cogmind - Beta 15 @@@ ROGUE MODE // 2025.08.20 @ 18:13:40 Player: Dadrick Result: Destroyed by Y-72 Warden with Railgun Performance ------------- Evolutions (7) 3500 Regions Visited (24) 4800 Robots Destroyed (242) 1210 Value Destroyed (7436) 7436 Prototype IDs (44) 880 Alien Tech Used (1) 200 Bonus (5342) 5342 TOTAL SCORE: 23368 Bonus ------- High Alert Combat Kills 660 Follower Combat Kills 2516 Network Hubs Disabled 400 Met Data Miner 300 Met Imprinter 300 Was Imprinted 300 Built Enhanced Grunts 300 A7 Reached Mainframe 300 Met R17 at Cetus 500 Friendly Fire -234 Cogmind --------- Core Integrity 0/1300 Matter 267/300 Energy 100/100 System Corruption 8% Temperature Cool (9) Movement Core (50) Location -3/Research Parts ------- > --- POWER (2) -------- (None) > --- PROPULSION (8) --- (None) > --- UTILITY (7) ------ Advanced Signal Interpreter Graphene Brace > --- WEAPON (5) ------- (None) > --- INVENTORY (5) ---- Advanced Transmission Jammer Heavy Gauss Cannon Heavy Shock Bomb Launcher Enhanced Force Lance GAL Module Peak State ------------ > --- POWER ------------ Enhanced Fission Core Zionite Light DM Reactor > --- PROPULSION ------- Cooled Aerolev Unit Gyrokinetic Inverter Linear Gravjet Improved Antigrav System Improved Antigrav System Improved Gyrokinetic Inverter Improved Linear Gravjet Improved Linear Gravjet > --- UTILITY ---------- Advanced Heat Sink Large Storage Unit Compact Battery Experimental Optical Array Advanced Sensor Array Advanced Signal Interpreter > --- WEAPON ----------- Gamma Rifle Railgun Railgun Tiamat Missile Launcher > --- INVENTORY -------- Reinforced Fission Core Nuclear Pulse Array Experimental Heat Sink Improved Transmission Jammer Graphene Brace Improved Force Field Improved System Restoration Module Z-Drone Bay Hacking Drone Bay Enhanced Gauss Cannon Heavy Shock Bomb Launcher Plasma Cutter Chainsword GAL Module [Rating: 133] Favorites ----------- Power Makeshift Power Source Engine Makeshift Power Source Power Core Light Nuclear Core Reactor Antimatter Reactor Propulsion Improved VTOL Module Treads Light Treads Leg Aluminum Leg Hover Unit Improved Linear Gravjet Flight Unit Improved VTOL Module Utility Advanced Signal Interpreter Device Advanced Sensor Array Storage Medium Storage Unit Processor Advanced Signal Interpreter Hackware Advanced Hacking Suite Protection Medium Regenerative Plating Weapon Enhanced Autogun Energy Gun Small Laser Energy Cannon Neutron Cannon Ballistic Gun Enhanced Autogun Ballistic Cannon Assault Cannon Launcher Advanced EMP Blaster Special Weapon Plasma Cutter Slashing Weapon Scythe Piercing Weapon Enhanced Force Lance Special Melee Weapon Datajack Build | -11 -10 -9 -9 -8 -8 -7 -7 -7 -7 -7 -7 -6 -6 -6 -6 -6 -5 -5 -5 -5 -5 -5 -4 -3 ------- Run | Yrd Mat Mat Min Mat Sto Fac Was Fac Low Low Zio Pro Fac Low Low Dat Pro Fac Ext Cet Arc Hub Fac Res Slots Evolved 14 | . . 2 . 2 . 2 . . . . . . 2 . . . . 2 . . . . 2 2 Power . | . . . . . . . . . . . . . . . . . . . . . . . . . Propulsion 6 | . . 1 . 2 . . . . . . . . 1 . . . . 1 . . . . 1 . Utility 5 | . . . . . . 2 . . . . . . 1 . . . . . . . . . 1 1 Weapon 3 | . . 1 . . . . . . . . . . . . . . . 1 . . . . . 1 Parts Attached 206 | 8 15 21 4 17 9 5 1 5 2 . 4 . 14 . . . . 14 17 6 6 11 39 8 Power 24 | 1 2 3 . 3 1 . . . 1 . 1 . 1 . . . . 1 3 1 . . 3 3 Engine 11 | 1 2 3 . 3 . . . . . . 1 . . . . . . . 1 . . . . . Core 8 | . . . . . 1 . . . 1 . . . 1 . . . . 1 1 . . . 3 . Reactor 5 | . . . . . . . . . . . . . . . . . . . 1 1 . . . 3 Propulsion 72 | 2 4 8 4 4 5 . . . . . . . 6 . . . . 4 3 1 4 7 18 2 Treads 16 | 2 1 7 1 . . . . . . . . . . . . . . . . 1 4 . . . Leg 4 | . 2 1 . . . . . . . . . . . . . . . . . . . . 1 . Wheel . | . . . . . . . . . . . . . . . . . . . . . . . . . Hover 15 | . . . . . . . . . . . . . . . . . . . 1 . . 7 7 . Flight 37 | . 1 . 3 4 5 . . . . . . . 6 . . . . 4 2 . . . 10 2 Utility 56 | 2 5 3 . 5 . 5 1 3 . . 2 . 6 . . . . 3 5 2 . 2 10 2 Device 30 | 1 1 . . 3 . 2 . 2 . . . . 6 . . . . 2 2 1 . 1 8 1 Storage 9 | 1 3 1 . 1 . . . 1 . . . . . . . . . . . . . 1 1 . Processor 4 | . . . . . . 1 . . . . 2 . . . . . . . . . . . 1 . Hackware 2 | . . . . . . 1 1 . . . . . . . . . . . . . . . . . Protection 11 | . 1 2 . 1 . 1 . . . . . . . . . . . 1 3 1 . . . 1 Artifact . | . . . . . . . . . . . . . . . . . . . . . . . . . Weapon 54 | 3 4 7 . 5 3 . . 2 1 . 1 . 1 . . . . 6 6 2 2 2 8 1 Energy Gun 6 | 1 . 2 . . . . . . . . . . . . . . . 1 1 . . . 1 . Energy Cannon 1 | . . . . . . . . . . . . . . . . . . . . 1 . . . . Ballistic Gun 27 | 2 1 1 . 4 2 . . 1 . . . . 1 . . . . 2 5 . 2 1 5 . Ballistic Cannon 5 | . . 2 . . . . . . . . . . . . . . . 1 . . . . 2 . Launcher 8 | . 2 1 . 1 1 . . 1 1 . . . . . . . . 1 . . . . . . Special Weapon 2 | . 1 . . . . . . . . . . . . . . . . . . 1 . . . . Impact Weapon . | . . . . . . . . . . . . . . . . . . . . . . . . . Slashing Weapon 3 | . . 1 . . . . . . . . . . . . . . . 1 . . . 1 . . Piercing Weapon 1 | . . . . . . . . . . . . . . . . . . . . . . . . 1 Special Melee Weapon 1 | . . . . . . . . . . . 1 . . . . . . . . . . . . . Unidentified Prototypes 30 | . 1 1 . . 2 . . 1 1 . 1 . 2 . . . . 5 6 4 . 3 1 2 Parts Lost 64 | . 4 4 . 1 3 . . . . 1 . . 1 . . . . 2 3 3 . 7 22 13 Power 10 | . 2 . . 1 1 . . . . . . . . . . . . . 1 . . 2 3 . Propulsion 26 | . 1 1 . . . . . . . . . . . . . . . 1 1 3 . 2 10 7 Utility 12 | . 1 1 . . 1 . . . . 1 . . . . . . . . . . . 1 3 4 Weapon 16 | . . 2 . . 1 . . . . . . . 1 . . . . 1 1 . . 2 6 2 Highest Loss Streak 17 | . 2 1 . 1 2 . . . . 1 . . 1 . . . . 1 3 3 . 5 17 8 To Critical Strikes . | . . . . . . . . . . . . . . . . . . . . . . . . . Average Backups 9 | 3 12 16 20 7 7 7 8 8 10 10 9 9 8 9 9 9 9 8 9 9 9 10 7 3 Power 1 | . . 2 3 1 . 1 1 . 1 1 1 1 . . . . . . 1 1 1 1 . . Propulsion 1 | 1 4 5 5 . . . . . . . . . . 1 1 1 1 . . . . 1 . . Utility 3 | . 2 2 4 2 3 2 3 3 4 4 4 5 5 6 6 6 6 5 5 5 5 4 3 . Weapon 2 | . 4 4 7 2 2 3 3 2 3 3 2 1 1 1 1 1 1 1 2 2 2 2 2 2 Tool/Special . | . . . . . . . . . . . . . . . . . . . . . . . . . Unused Backups 25 | . 1 3 . 8 1 2 . 1 . . . . 1 . . . . 4 . . . . 2 2 Power 2 | . . . . 1 . . . 1 . . . . . . . . . . . . . . . . Propulsion 5 | . 1 2 . 1 1 . . . . . . . . . . . . . . . . . . . Utility 12 | . . . . 3 . 2 . . . . . . 1 . . . . 4 . . . . 2 . Weapon 6 | . . 1 . 3 . . . . . . . . . . . . . . . . . . . 2 Tool/Special . | . . . . . . . . . . . . . . . . . . . . . . . . . Average Slot Usage (%) 93 | . 97 99 100 99 98 98 100 99 98 91 91 92 95 100 100 100 100 96 97 94 93 91 74 73 Engine 6 | . 12 11 11 8 1 . . . . . 5 7 6 6 6 6 6 5 6 9 5 4 . . Core 2 | . . . . . 6 7 7 6 7 7 1 . 2 6 6 6 6 5 3 . . . 3 . Treads 8 | . 18 29 31 . . . . . . . . . . . . . . . . 2 24 25 . . Leg 1 | . 9 3 . . . . . . . . . . . . . . . . . . . . . . Hover 1 | . . . . . . . . . . . . . . . . . . . . . . 1 19 . Flight 21 | . . . 1 44 45 37 38 38 37 35 35 35 36 37 37 37 37 36 36 30 6 3 7 22 Device 7 | . 13 . . 1 2 6 7 7 7 6 1 . 9 12 12 12 12 10 9 8 5 5 10 16 Storage 7 | . 14 11 11 8 9 7 7 7 7 7 7 7 6 6 6 6 6 5 5 5 5 5 6 . Processor 7 | . . . . . . 7 7 7 7 7 11 14 12 12 12 12 12 11 11 11 11 11 10 8 Hackware 1 | . . . . . . 5 7 7 7 7 7 7 2 . . . . . . . . . . . Protection 2 | . . 10 11 8 6 1 . . . . . . . . . . . . 1 2 5 4 . 3 Energy Gun 1 | . 9 1 . . . . . . . . . . . . . . . . . . . . 1 . Ballistic Gun 13 | . 18 11 . 17 17 14 15 14 14 14 12 14 11 11 12 12 11 12 14 15 16 15 8 13 Ballistic Cannon 1 | . . 13 22 . . . . . . . . . . . . . . . . . . . . . Slashing Weapon 4 | . . 6 11 7 9 6 7 6 6 7 7 7 6 6 5 6 6 5 5 4 5 4 4 3 Peak Build Rating 133 | 7 10 23 27 34 40 47 49 51 52 51 59 59 76 76 76 76 76 93 105 106 113 113 133 109 Average Rating 60 | 5 8 17 22 32 38 45 48 49 50 50 55 58 71 75 76 76 75 82 94 102 109 107 88 89 On Entrance 57 | . 7 9 22 27 33 37 46 49 50 51 48 59 59 76 76 76 76 76 93 102 106 109 49 90 Naked Turns . | . . . . . . . . . . . . . . . . . . . . . . . . . Heaviest Build 78 | 12 30 66 62 25 24 23 19 24 25 25 24 22 32 35 32 32 32 37 42 61 63 74 78 39 Greatest Support 192 | 40 40 63 60 25 25 25 25 25 25 25 25 25 41 32 41 32 32 37 53 80 192 192 85 40 Greatest Overweight (x) 4 | . 2 1 4 . . . . . . . . . . 1 . . . 1 1 1 . 1 1 . Average Overweight (x) . | . . . 1 . . . . . . . . . . . . . . . . . . . . . Largest Inventory Capacity 20 | 8 15 20 20 20 8 8 8 10 10 10 10 10 10 10 10 10 10 10 10 10 10 15 15 5 Average Capacity 11 | 7 14 17 20 7 8 8 8 9 10 10 10 10 10 10 10 10 10 10 10 10 10 11 11 5 Most Carried 20 | 6 15 20 20 17 8 8 8 10 10 10 10 10 10 10 10 10 10 10 10 10 10 15 15 5 Average Carried 10 | 3 12 16 19 7 7 7 8 9 10 10 9 9 9 10 10 10 10 9 9 10 10 11 8 4 Final Capacity 20 | 8 15 20 20 8 8 8 8 10 10 10 10 10 10 10 10 10 10 10 10 10 10 15 5 5 Final Carried 20 | 6 15 20 17 8 8 8 8 10 10 10 10 10 10 10 10 10 10 10 10 10 10 10 5 5 Class Distribution -------------------- 24% | Sprinter 18% | Mutant 10% | Scout 10% | Scavenger-Assassin 8% | Scavenger-Scout 8% | Scavenger-Sprinter 5% | Scavenger-Mutant 3% | Assassin 3% | Scavenger-Tank Dominant Class ---------------- Mutant | -10/Materials Scavenger-Mutant | -9/Materials Mutant | -9/Mines Sprinter | -8/Materials Sprinter | -8/Storage Sprinter | -7/Factory Sprinter | -7/Waste Sprinter | -7/Factory Sprinter | -7/Lower Caves Sprinter | -7/Lower Caves Sprinter | -7/Zion Sprinter | -6/Proximity Caves Scout | -6/Factory Scout | -6/Lower Caves Scout | -6/Lower Caves Scout | -6/Data Miner Scout | -5/Proximity Caves Scavenger-Scout | -5/Factory Scavenger-Scout | -5/Extension Commander-Assassin | -5/Cetus Scavenger-Assassin | -5/Archives Scavenger-Assassin | -5/Hub_04(d) Assassin | -4/Factory Scavenger-Sprinter | -3/Research Resources | -11 -10 -9 -9 -8 -8 -7 -7 -7 -7 -7 -7 -6 -6 -6 -6 -6 -5 -5 -5 -5 -5 -5 -4 -3 ----------- Run | Yrd Mat Mat Min Mat Sto Fac Was Fac Low Low Zio Pro Fac Low Low Dat Pro Fac Ext Cet Arc Hub Fac Res Matter Collected 7550 | 289 605 780 65 631 190 107 . 255 80 89 98 24 274 59 113 . 71 475 1351 291 72 505 970 156 Remotely 18 | . . . . 18 . . . . . . . . . . . . . . . . . . . . Salvage Created 9380 | 87 785 991 74 1084 582 189 . 406 143 39 . 54 767 . 8 . 60 570 1187 124 106 1369 755 . Parts 463 | 6 55 64 7 76 26 12 . 27 7 1 . 4 33 . 1 . 6 17 35 5 2 48 31 . Haulers Intercepted 32 | . 2 3 . 5 6 2 . 4 . . . . 3 . . . . 3 . . . 4 . . Recyclers Shooed 3 | . 2 . . 1 . . . . . . . . . . . . . . . . . . . . Parts Field Recycled . | . . . . . . . . . . . . . . . . . . . . . . . . . Retrieved Matter . | . . . . . . . . . . . . . . . . . . . . . . . . . Parts Self-Destructed 15 | . . . . . . . . . 5 2 . 3 . . . . 5 . . . . . . . Prevented 6 | . . . . . . . . . . 1 . 3 . . 2 . . . . . . . . . Kills | -11 -10 -9 -9 -8 -8 -7 -7 -7 -7 -7 -7 -6 -6 -6 -6 -6 -5 -5 -5 -5 -5 -5 -4 -3 ------- Run | Yrd Mat Mat Min Mat Sto Fac Was Fac Low Low Zio Pro Fac Low Low Dat Pro Fac Ext Cet Arc Hub Fac Res Combat Hostiles Destroyed 146 | . 19 23 5 16 3 1 . 4 5 1 . 1 5 . 3 . 4 12 16 2 1 14 11 . Melee 4 | . . . . 1 . . . . . . . . 2 . . . . . . . . . 1 . Guns 43 | . 8 4 . 3 . . . 1 1 1 . 1 1 . . . . 1 8 2 1 3 8 . Cannons 27 | . . 15 5 . . . . . . . . . . . . . . . 5 . . . 2 . AOE 69 | . 11 4 . 11 1 1 . 3 4 . . . 2 . 3 . 4 11 3 . . 11 . . Classes Destroyed 18 | 2 6 3 1 2 . . . 1 . . . . . . . . . . 1 . . 2 . . Worker 10 | . 3 2 . 2 . . . 2 . . . . . . . . . . . . . . 1 . Builder 12 | . 2 1 . 3 . . . . . . . . . . . . . . 1 . . 5 . . Tunneler 3 | 1 1 . . 1 . . . . . . . . . . . . . . . . . . . . Hauler 32 | . 2 3 . 5 6 2 . 4 . . . . 3 . . . . 3 . . . 4 . . Recycler 15 | 1 1 1 . 3 1 . . 1 . . . . 1 . . . . . 3 . . 1 2 . Mechanic 1 | . . 1 . . . . . . . . . . . . . . . . . . . . . . Operator 8 | . . . . 2 . 1 . 1 . . . . 1 . . . . . 2 . 1 . . . Watcher 14 | . 3 1 . 3 . . . 1 . . . . 4 . . . . . . 1 . 1 . . Swarmer 38 | . 3 4 3 7 . . . 3 . . . . . . 3 . 4 5 . . . . 6 . Grunt 68 | . 16 13 1 6 1 1 . . 4 1 . . 2 . . . . 6 9 . . 7 1 . Brawler 4 | . . . 1 . . . . . . . . . . . . . . . . . . 1 2 . Duelist 2 | . . 1 . . . . . . . . . . . . . . . . . . . 1 . . Protector 2 | . . . . . . . . . . . . . . . . . . . . . . 2 . . Sentry 18 | . . 5 . 1 1 . . . . . . 1 1 . . . . 1 5 . 1 1 1 . Hunter 4 | . . . . 2 1 . . . . . . . . . . . . . 1 . . . . . Programmer 7 | . . . . . . . . 1 1 . . . 2 . . . . . . . . 2 1 . Behemoth 1 | . . . . . . . . . . . . . . . . . . . 1 . . . . . Cetus Guard 2 | . . . . . . . . . . . . . . . . . . . . 2 . . . . Z-Courier 1 | . . . . . . . . . . . . . . . . . . . . . . 1 . . Z-Light 1 | . . . . . . . . . . . . . . . . . . . . . . 1 . . Best Kill Streak 11 | 2 7 11 3 11 5 2 . 3 4 1 . 1 4 . 3 . 4 6 4 2 1 10 4 . Combat Bots Only 8 | . 6 6 3 8 3 1 . 3 4 1 . 1 2 . 3 . 4 6 3 1 1 7 4 . Max Kills in Single Turn 9 | 2 3 4 1 3 2 1 . 3 2 1 . 1 1 . 2 . 4 3 2 1 1 9 1 . Gunslinging 1 | . 1 . . . . . . . . . . . . . . . . . . . . . . . Exploded 4 | . 3 2 . 2 1 1 . 3 2 . . . 1 . 2 . 4 3 1 . . 3 . . Melee 1 | . . . . 1 . . . . . . . . 1 . . . . . . . . . 1 . Uniques/NPCs Destroyed . | . . . . . . . . . . . . . . . . . . . . . . . . . Combat | -11 -10 -9 -9 -8 -8 -7 -7 -7 -7 -7 -7 -6 -6 -6 -6 -6 -5 -5 -5 -5 -5 -5 -4 -3 -------- Run | Yrd Mat Mat Min Mat Sto Fac Was Fac Low Low Zio Pro Fac Low Low Dat Pro Fac Ext Cet Arc Hub Fac Res Hostile Shots Fired 1155 | . 86 111 25 63 43 . . 24 13 17 . . 11 . 15 . 4 24 71 20 1 97 231 299 Missed 484 | . 21 36 8 30 18 . . 12 4 13 . . 6 . 8 . 3 12 19 7 . 24 84 179 Hits 671 | . 65 75 17 33 25 . . 12 9 4 . . 5 . 7 . 1 12 52 13 1 73 147 120 Melee 14 | . . 2 . . . . . . . . . . . . . . . . . . . . 12 . Projectile 657 | . 65 73 17 33 25 . . 12 9 4 . . 5 . 7 . 1 12 52 13 1 73 135 120 AOE 1 | . . . . . . . . . . . . . . . . . . . 1 . . . . . Critical Strikes 47 | . 1 2 . 1 1 . . 1 1 . . . . . . . . . 4 2 . 12 15 7 Actively Blocked 10 | . . . . . . . . . . . . . . . . . . . . . . . 3 7 Part Disruptions 1 | . . . . . . . . . . . . . . . . . . . . . . 1 . . Damage Taken 13428 | . 876 1063 139 475 403 49 . 145 144 91 . . 310 . 100 . 15 234 1211 321 21 2369 2957 2505 Core 3592 | . 184 102 14 102 31 . . 36 72 . . . 101 . 10 . 15 . 263 29 . 277 1053 1303 Absorbed by Shields 328 | . . . . . . . . 8 . . . . . . . . . . 56 66 . . 198 . Regen/Repaired (Parts) 292 | . . . . . . . . . . . . . . . . . . . 52 110 . 130 . . Core Remaining (%) 61 | 100 26 . 71 . 75 . . . . . . 84 . . . . 85 . . . . 43 8 . Volleys Fired 475 | 3 107 64 11 35 16 2 . 5 7 3 . 3 8 5 4 . 2 16 89 11 1 24 47 12 Largest 4 | 2 2 3 2 2 2 1 . 2 2 2 . 2 2 1 1 . 1 2 3 3 3 3 2 4 Hottest 141 | 60 100 141 74 74 50 36 . 50 50 50 . 50 55 36 36 . 36 53 96 106 93 100 70 92 Shots Fired 846 | 6 199 146 22 46 27 2 . 8 11 6 . 6 12 5 4 . 2 19 149 31 3 44 77 21 Gun 569 | 6 184 66 . 20 23 . . 6 9 6 . 6 8 . . . . 6 92 29 3 30 62 13 Cannon 178 | . . 76 22 2 . . . . . . . . . . . . . 3 53 . . . 14 8 Launcher 97 | . 13 4 . 24 4 2 . 2 2 . . . 4 5 4 . 2 10 4 2 . 14 1 . Special 2 | . 2 . . . . . . . . . . . . . . . . . . . . . . . Kinetic 673 | 3 122 133 22 22 23 . . 6 9 6 . 6 8 . . . . 9 145 29 3 30 76 21 Thermal 76 | 3 64 9 . . . . . . . . . . . . . . . . . . . . . . Explosive 81 | . 13 4 . 14 . . . 2 2 . . . 4 5 4 . 2 10 4 2 . 14 1 . Electromagnetic 16 | . . . . 10 4 2 . . . . . . . . . . . . . . . . . . Robot Hit Streak 21 | 5 8 12 6 7 4 . . 4 5 9 . 3 5 . 5 . . 3 13 6 5 21 13 3 Robot Miss Streak 6 | . 4 5 1 4 4 . . 2 2 1 . 3 2 . . . 2 3 6 3 . 4 4 2 Penetration Max 1 | . . . . . . . . . . . . . . . . . . . 1 1 . 1 1 . Secondary Targets 3 | . 2 . . . . . . . . . . . . . . . . . 1 . . . . . Max Gunslinging Chain 1 | . 1 . . . . . . . . . . . . . . . . . 1 . . . . . Shots Hit Robots 584 | 5 116 87 14 45 26 2 . 22 5 5 . 3 34 . 2 . . 16 96 15 3 20 61 7 Core Hits 432 | 3 54 50 4 44 8 5 . 17 16 2 . 1 23 . 3 . 5 32 36 19 1 72 34 3 Critical Kills 3 | . . . . . . . . . . . . . . . . . . . 2 1 . . . . Critical Parts Destroyed 3 | . . . . . . . . . . . . . . . . . . . 2 . . . 1 . Critical Strikes 33 | . . 5 2 2 1 . . 1 . . . . 3 . . . . . 12 1 . . 6 . Burn 1 | . . 1 . . . . . . . . . . . . . . . . . . . . . . Destroy 6 | . . . . . . . . . . . . . . . . . . . 4 1 . . 1 . Blast 17 | . . 4 2 . . . . . . . . . . . . . . . 7 . . . 4 . Sever 9 | . . . . 2 1 . . 1 . . . . 3 . . . . . 1 . . . 1 . Melee Attacks 281 | . . . . 32 30 13 . 30 5 5 1 8 55 11 5 . 6 28 14 . 1 1 18 18 Impact . | . . . . . . . . . . . . . . . . . . . . . . . . . Slashing 277 | . . . . 32 30 13 . 30 5 5 1 8 55 11 5 . 6 28 14 . 1 1 18 14 Piercing 4 | . . . . . . . . . . . . . . . . . . . . . . . . 4 Sneak Attacks 40 | . . . . 9 5 1 . 5 . . . . 7 . . . . 3 5 . 1 1 3 . Combat Hostiles 1 | . . . . . . . . . . . . . 1 . . . . . . . . . . . Follow-up Attacks . | . . . . . . . . . . . . . . . . . . . . . . . . . Damage Inflicted 27791 | 74 2173 2080 360 2856 1249 205 . 1257 527 90 . 50 1711 . 311 . 229 1916 3751 823 146 5468 2404 111 Guns 6174 | 74 1196 413 . 232 205 . . 73 81 90 . 50 116 . . . . 44 1280 503 50 519 1137 111 Cannons 3448 | . . 1202 360 28 . . . . . . . . . . . . . . 1397 . . . 461 . Explosions 12463 | . 965 453 . 1493 369 98 . 314 446 . . . 376 . 311 . 229 1443 432 320 . 4885 329 . Melee 5682 | . . . . 1103 675 107 . 870 . . . . 1219 . . . . 429 642 . 96 64 477 . Ramming 24 | . 12 12 . . . . . . . . . . . . . . . . . . . . . . Kinetic 9051 | 41 781 1492 360 260 205 . . 73 81 90 . 50 116 . . . . 44 2677 503 50 519 1598 111 Thermal 654 | 33 415 123 . 83 . . . . . . . . . . . . . . . . . . . . Explosive 9766 | . 965 453 . 966 . . . 314 446 . . . 376 . 311 . 229 1443 432 320 . 3182 329 . Electromagnetic 2614 | . . . . 444 369 98 . . . . . . . . . . . . . . . 1703 . . Impact . | . . . . . . . . . . . . . . . . . . . . . . . . . Slashing 5682 | . . . . 1103 675 107 . 870 . . . . 1219 . . . . 429 642 . 96 64 477 . Piercing . | . . . . . . . . . . . . . . . . . . . . . . . . . Highest Corruption 22 | . 1 . . . . 4 9 9 6 6 6 . . . . . . . . . . 22 10 8 Average Corruption 5 | . 1 . . . . 1 9 5 5 6 6 . . . . . . . . . . 6 9 3 Corruption Purged 9 | . . . . . . 4 . 5 . . . . . . . . . . . . . . . . Corruption Blocked . | . . . . . . . . . . . . . . . . . . . . . . . . . Effects 57 | . 3 . . . . . 1 19 5 5 . . . . . . . . . . . 4 18 2 Message Errors 15 | . 2 . . . . . . 6 1 2 . . . . . . . . . . . 1 3 . Matter Fused 10 | . . . . . . . . 4 1 2 . . . . . . . . . . . 1 2 . Heat Flow Errors 8 | . . . . . . . . 3 . . . . . . . . . . . . . 1 3 1 Energy Discharges 9 | . 1 . . . . . 1 1 . . . . . . . . . . . . . . 5 1 Data Loss (minor) 7 | . . . . . . . . 4 1 1 . . . . . . . . . . . . 1 . Data Loss (major) 2 | . . . . . . . . . 1 . . . . . . . . . . . . . 1 . Misfires 2 | . . . . . . . . 1 . . . . . . . . . . . . . . 1 . Misdirections 2 | . . . . . . . . . . . . . . . . . . . . . . 1 1 . Weapon Failures 2 | . . . . . . . . . 1 . . . . . . . . . . . . . 1 . Overload Shots . | . . . . . . . . . . . . . . . . . . . . . . . . . Overflow Damage 773 | . . 32 24 175 15 . . 22 . . . . 15 . . . . 16 204 . 51 96 123 . Projectiles 44 | . . 20 24 . . . . . . . . . . . . . . . . . . . . . Explosions 162 | . . 12 . 22 . . . . . . . . . . . . . 14 . . . 96 18 . Melee 567 | . . . . 153 15 . . 22 . . . . 15 . . . . 2 204 . 51 . 105 . Knockbacks 22 | . 1 16 2 . . . . . . . . . . . . . . . . . . . 3 . Impact 1 | . 1 . . . . . . . . . . . . . . . . . . . . . . . Kinetic 20 | . . 15 2 . . . . . . . . . . . . . . . . . . . 3 . Secondary 1 | . . 1 . . . . . . . . . . . . . . . . . . . . . . Self-Inflicted Damage 153 | . . . . 36 16 . . . . . . . . . . . . . . . . 101 . . Shots 5 | . . . . 3 1 . . . . . . . . . . . . . . . . 1 . . Rammed 5 | . 2 3 . . . . . . . . . . . . . . . . . . . . . . Targets Rammed 5 | . 2 3 . . . . . . . . . . . . . . . . . . . . . . Kicked . | . . . . . . . . . . . . . . . . . . . . . . . . . Crushed . | . . . . . . . . . . . . . . . . . . . . . . . . . Highest Temperature 420 | . 150 279 84 79 218 9 8 282 24 27 204 107 327 5 141 . . 142 328 1 36 240 420 177 Average Temperature 54 | . 38 76 38 9 53 2 2 44 3 4 54 41 59 4 57 . . 52 94 1 19 48 150 31 Received Heat Transfer 2337 | . 390 444 12 198 90 . . 21 36 12 . . 27 . 12 . . 27 218 36 . 189 265 360 Effects 20 | . . 1 . . . . . 2 . . . . 3 . . . . . 1 . . 2 11 . Energy Bleed 4 | . . 1 . . . . . . . . . . . . . . . . 1 . . . 2 . Interference 13 | . . . . . . . . 2 . . . . 3 . . . . . . . . 2 6 . Matter Decay 1 | . . . . . . . . . . . . . . . . . . . . . . . 1 . Damage (minor) 2 | . . . . . . . . . . . . . . . . . . . . . . . 2 . Siege Activations . | . . . . . . . . . . . . . . . . . . . . . . . . . Martial Activations . | . . . . . . . . . . . . . . . . . . . . . . . . . Shielding Activations . | . . . . . . . . . . . . . . . . . . . . . . . . . Robots Disrupted 1 | . . . . 1 . . . . . . . . . . . . . . . . . . . . Combat Hostiles 1 | . . . . 1 . . . . . . . . . . . . . . . . . . . . Robots Corrupted 4 | . . . . 1 2 . . . . . . . . . . . . . . . . 1 . . Combat Hostiles 3 | . . . . 1 2 . . . . . . . . . . . . . . . . . . . Parts Fried 18 | . . . . . 3 . . . . 1 . . . . . . . . 2 1 . 11 . . Impact Corruptions . | . . . . . . . . . . . . . . . . . . . . . . . . . Robots Melted . | . . . . . . . . . . . . . . . . . . . . . . . . . Combat Hostiles . | . . . . . . . . . . . . . . . . . . . . . . . . . Parts Melted 3 | . . 3 . . . . . . . . . . . . . . . . . . . . . . Heat Transferred 1470 | 75 925 370 . 100 . . . . . . . . . . . . . . . . . . . . Parts Sabotaged . | . . . . . . . . . . . . . . . . . . . . . . . . . Parts Stolen . | . . . . . . . . . . . . . . . . . . . . . . . . . Parts Stripped . | . . . . . . . . . . . . . . . . . . . . . . . . . Power Chain Reactions 4 | . . . . 2 . 1 . . . . . . . . . . . . . . . 1 . . Alert | -11 -10 -9 -9 -8 -8 -7 -7 -7 -7 -7 -7 -6 -6 -6 -6 -6 -5 -5 -5 -5 -5 -5 -4 -3 ------- Run | Yrd Mat Mat Min Mat Sto Fac Was Fac Low Low Zio Pro Fac Low Low Dat Pro Fac Ext Cet Arc Hub Fac Res Maximum Alert Level 4 | . . 1 . 2 2 . . 1 . . . . 2 . . . . 2 2 2 1 4 3 3 Low Security (%) 51 | 100 100 96 100 50 . 100 100 96 . . . . . . . . . 73 6 . 59 29 . . Level 1 20 | . . 3 . 30 81 . . 3 . . . . 53 . . . . 4 67 4 40 6 . 31 Level 2 23 | . . . . 18 18 . . . . . . . 46 . . . . 21 26 95 . 49 52 63 Level 3 4 | . . . . . . . . . . . . . . . . . . . . . . . 47 4 Level 4 . | . . . . . . . . . . . . . . . . . . . . . . 13 . . Level 5 . | . . . . . . . . . . . . . . . . . . . . . . . . . High Security . | . . . . . . . . . . . . . . . . . . . . . . . . . Max Security . | . . . . . . . . . . . . . . . . . . . . . . . . . Peak Influence 1561 | 10 188 268 172 577 434 151 7 223 . . . . 473 . . . . 581 598 521 329 1561 877 867 Initial 732 | . . 12 99 44 239 135 7 . . . . . 450 . . . . 37 276 330 164 5 732 446 Average 263 | . 77 67 141 205 333 79 3 61 . . . . 391 . . . . 191 312 456 172 495 718 454 Influence Increases 10969 | 10 649 691 125 967 370 128 . 359 120 50 . 35 903 . 85 . 90 794 1164 421 215 1981 853 959 Destroy 0b10 Robot/C 3880 | . 380 460 100 320 60 20 . 80 100 20 . 20 100 . 60 . 80 320 580 160 80 540 340 60 Destroy 0b10 Robot/NC 550 | 10 60 45 . 95 35 15 . 45 . . . 5 45 . . . . 15 50 10 10 95 15 . Destroy Leader 824 | . 90 118 20 86 32 4 . 30 20 . . . 44 . 10 . 10 76 96 . . 118 60 10 Allied During Kill 870 | . . . . . . . . . . . . 10 . . . . . 44 162 148 90 344 57 15 Successful Hack 133 | . 14 14 . 14 12 . . 29 . . . . 24 . . . . . 8 . . . 18 . Select Force Hacks 60 | . . . . . . 30 . 30 . . . . . . . . . . . . . . . . Disable Machine 510 | . 15 . . 45 75 . . . . . . . 15 . . . . 30 45 15 15 180 75 . Destroy Structure 1487 | . 60 39 5 107 6 14 . 25 . . . . 45 . . . . 204 118 88 20 614 78 64 Advance Influence 450 | . . . . . . . . . . . . . 450 . . . . . . . . . . . Partial Spotted 600 | . . . . 75 135 15 . 45 . . . . 120 . . . . 45 75 . . . . 90 Lose Combat Pursuer 1605 | . 30 15 . 225 15 30 . 75 . 30 . . 60 . 15 . . 60 30 . . 90 210 720 Influence Decreases 10102 | 10 619 465 267 512 640 405 22 136 163 105 125 35 494 222 96 176 30 289 1139 600 609 503 1497 943 Entered New Map 3360 | . . 18 157 70 330 164 15 . 83 35 125 . . 152 36 176 . 23 289 260 247 12 763 405 Time Decay 4902 | 10 579 417 110 262 130 241 7 136 80 60 . 35 334 70 60 . 30 196 510 270 342 271 434 318 Search Patrol Dispatched 150 | . . . . . . . . . . . . . 150 . . . . . . . . . . . Lost Part 630 | . 40 30 . 10 30 . . . . 10 . . 10 . . . . 20 30 30 . 70 220 130 Lost Ally 760 | . . . . 20 . . . . . . . . . . . . . 50 310 40 20 150 80 90 Purge Threat 300 | . . . . 150 150 . . . . . . . . . . . . . . . . . . . Squads Dispatched 54 | . 5 2 . 4 . 3 . 4 . . . . 8 . . . . 3 4 . . 11 6 4 Investigation 8 | . 1 . . . . 1 . 2 . . . . . . . . . 1 3 . . . . . Extermination 11 | . . . . . . 1 . 1 . . . . 3 . . . . 1 . . . 1 1 3 Reinforcement 22 | . 4 2 . 3 . 1 . 1 . . . . 2 . . . . 1 1 . . 5 1 1 Assault 8 | . . . . . . . . . . . . . . . . . . . . . . 4 4 . Garrison 5 | . . . . 1 . . . . . . . . 3 . . . . . . . . 1 . . Intercept . | . . . . . . . . . . . . . . . . . . . . . . . . . Searches Triggered 1 | . . . . . . . . . . . . . 1 . . . . . . . . . . . Data Miner Redirects 5 | . . . . . . . . . . . . . . . . . . 1 2 . . 1 1 . Construction Impeded 4 | . . 1 . . . . . . . . . . . . . . . . 1 . . 1 1 . Haulers Reinforced 4 | . . . . . . . . 1 . . . . 2 . . . . 1 . . . . . . Active Scanning Responses . | . . . . . . . . . . . . . . . . . . . . . . . . . Cargo Convoy Interrupts . | . . . . . . . . . . . . . . . . . . . . . . . . . Stealth | -11 -10 -9 -9 -8 -8 -7 -7 -7 -7 -7 -7 -6 -6 -6 -6 -6 -5 -5 -5 -5 -5 -5 -4 -3 --------- Run | Yrd Mat Mat Min Mat Sto Fac Was Fac Low Low Zio Pro Fac Low Low Dat Pro Fac Ext Cet Arc Hub Fac Res Distress Signals 23 | . 1 4 . 6 . 1 . . . . . . 4 . . . . . 2 1 . 2 1 1 Communications Jammed . | . . . . . . . . . . . . . . . . . . . . . . . . . Distress Signals . | . . . . . . . . . . . . . . . . . . . . . . . . . Times Spotted 417 | . 37 41 5 44 11 7 6 13 5 4 . 4 23 . 5 . 4 18 37 9 3 37 34 70 Peak Tracking Total 21 | . 6 6 3 11 3 4 6 4 4 2 . 2 4 . 4 . 4 7 5 5 1 10 8 21 Tactical Retreats 43 | . 1 1 . 7 3 2 . 3 . 2 . . 3 . 1 . . 1 2 . . 3 4 10 Traps | -11 -10 -9 -9 -8 -8 -7 -7 -7 -7 -7 -7 -6 -6 -6 -6 -6 -5 -5 -5 -5 -5 -5 -4 -3 ------- Run | Yrd Mat Mat Min Mat Sto Fac Was Fac Low Low Zio Pro Fac Low Low Dat Pro Fac Ext Cet Arc Hub Fac Res Traps Triggered 20 | . 2 2 . . . 5 . 2 . . . . 1 . . . . . 6 . . 1 1 . Indirectly . | . . . . . . . . . . . . . . . . . . . . . . . . . Trap Hack Attempts . | . . . . . . . . . . . . . . . . . . . . . . . . . Triggered . | . . . . . . . . . . . . . . . . . . . . . . . . . Disarmed . | . . . . . . . . . . . . . . . . . . . . . . . . . Reprogrammed . | . . . . . . . . . . . . . . . . . . . . . . . . . Reused . | . . . . . . . . . . . . . . . . . . . . . . . . . Traps Extracted . | . . . . . . . . . . . . . . . . . . . . . . . . . Installed . | . . . . . . . . . . . . . . . . . . . . . . . . . Triggered . | . . . . . . . . . . . . . . . . . . . . . . . . . Machines | -11 -10 -9 -9 -8 -8 -7 -7 -7 -7 -7 -7 -6 -6 -6 -6 -6 -5 -5 -5 -5 -5 -5 -4 -3 ---------- Run | Yrd Mat Mat Min Mat Sto Fac Was Fac Low Low Zio Pro Fac Low Low Dat Pro Fac Ext Cet Arc Hub Fac Res Machines Disabled 40 | . 1 1 . 3 5 . . . . . . . 1 . . . . 2 8 1 1 12 5 . Max in Single Turn 8 | . 1 1 . 1 1 . . . . . . . 1 . . . . 1 1 1 . 8 1 . Garrison Access 5 | . . . . . . 2 . 1 . . . . 1 . . . . . . . . 1 . . Network Hub 2 | . . . . . . . . . . . . . . . . . . . . . . 2 . . Machines Repaired . | . . . . . . . . . . . . . . . . . . . . . . . . . Machines Dismantled 1 | . . . . . . . . . . . . . . . . . . . . 1 . . . . Machines Sabotaged . | . . . . . . . . . . . . . . . . . . . . . . . . . Overloaded Fab Kills . | . . . . . . . . . . . . . . . . . . . . . . . . . Hacking | -11 -10 -9 -9 -8 -8 -7 -7 -7 -7 -7 -7 -6 -6 -6 -6 -6 -5 -5 -5 -5 -5 -5 -4 -3 --------- Run | Yrd Mat Mat Min Mat Sto Fac Was Fac Low Low Zio Pro Fac Low Low Dat Pro Fac Ext Cet Arc Hub Fac Res Machines Accessed 74 | . 7 8 . 6 7 9 . 14 . . 1 1 6 1 . 4 . 1 1 1 . . 5 2 Terminals 38 | . 5 8 . 6 7 1 . 8 . . . 1 . 1 . . . . . 1 . . . . Fabricators 9 | . . . . . . 3 . 3 . . . . 2 . . . . . . . . . 1 . Repair Stations 3 | . . . . . . . . 1 . . . . . . . . . . 1 . . . 1 . Recycling Units 12 | . 2 . . . . 3 . 1 . . . . 2 . . . . 1 . . . . 2 1 Scanalyzers . | . . . . . . . . . . . . . . . . . . . . . . . . . Garrison Access 7 | . . . . . . 2 . 1 . . . . 2 . . . . . . . . . 1 1 Total Hacks 201 | . 20 18 . 21 16 11 . 35 . . 4 1 9 2 . 27 . 2 9 1 . . 18 7 Successful 120 | . 15 10 . 12 7 6 . 20 . . 4 1 5 2 . 27 . . 5 . . . 4 2 Failed 81 | . 5 8 . 9 9 5 . 15 . . . . 4 . . . . 2 4 1 . . 14 5 Catastrophic 12 | . 1 1 . 1 . 2 . 1 . . . . 1 . . . . . . . . . 5 . Database Lockouts . | . . . . . . . . . . . . . . . . . . . . . . . . . Manual 180 | . 14 15 . 19 2 4 . 21 . . . . 35 . . . . 22 10 1 . 12 9 16 Terminals 103 | . 18 18 . 21 16 1 . 25 . . . 1 . 2 . . . . . 1 . . . . Fabricators 20 | . . . . . . 5 . 6 . . . . 4 . . . . . . . . . 5 . Repair Stations 12 | . . . . . . . . 1 . . . . . . . . . . 9 . . . 2 . Recycling Units 24 | . 2 . . . . 3 . 2 . . . . 3 . . . . 2 . . . . 8 4 Scanalyzers . | . . . . . . . . . . . . . . . . . . . . . . . . . Garrison Access 11 | . . . . . . 2 . 1 . . . . 2 . . . . . . . . . 3 3 Terminal Hacks 61 | . 4 4 . 3 6 . . 10 . . 4 1 . 2 . 27 . . . . . . . . Record 14 | . . . . . . . . . . . . 1 . 2 . 11 . . . . . . . . Part Schematic 17 | . . . . . . . . 2 . . 4 . . . . 11 . . . . . . . . Robot Schematic 2 | . . . . . . . . . . . . . . . . 2 . . . . . . . . Robot Analysis 4 | . 1 1 . . . . . 2 . . . . . . . . . . . . . . . . Prototype ID Bank 5 | . 1 . . . . . . 1 . . . . . . . 3 . . . . . . . . Open Door 4 | . . . . . 4 . . . . . . . . . . . . . . . . . . . Branch Access Points 1 | . . . . . . . . 1 . . . . . . . . . . . . . . . . Terminal Index 4 | . 1 1 . 1 . . . 1 . . . . . . . . . . . . . . . . Unreport Threat 2 | . . . . 1 1 . . . . . . . . . . . . . . . . . . . Locate Traps 3 | . . 1 . . . . . 2 . . . . . . . . . . . . . . . . Hauler Manifests 1 | . . 1 . . . . . . . . . . . . . . . . . . . . . . Zone Layout 4 | . 1 . . 1 1 . . 1 . . . . . . . . . . . . . . . . Fabricator Hacks 4 | . . . . . . 1 . 1 . . . . 1 . . . . . . . . . 1 . Network Status 4 | . . . . . . 1 . 1 . . . . 1 . . . . . . . . . 1 . Repair Station Hacks 6 | . . . . . . . . . . . . . . . . . . . 5 . . . 1 . Scan Component 2 | . . . . . . . . . . . . . . . . . . . 2 . . . . . Repair 2 | . . . . . . . . . . . . . . . . . . . 2 . . . . . Refit 2 | . . . . . . . . . . . . . . . . . . . 1 . . . 1 . Recycling Unit Hacks 9 | . 2 . . . . 2 . 1 . . . . 1 . . . . . . . . . 1 2 Process 1 | . . . . . . . . . . . . . . . . . . . . . . . . 1 Report Inventory 6 | . 1 . . . . 2 . 1 . . . . 1 . . . . . . . . . 1 . Retrieve Matter 1 | . . . . . . . . . . . . . . . . . . . . . . . . 1 Retrieve Components 1 | . 1 . . . . . . . . . . . . . . . . . . . . . . . Scanalyzer . | . . . . . . . . . . . . . . . . . . . . . . . . . Garrison Access Hacks 4 | . . . . . . 2 . 1 . . . . 1 . . . . . . . . . . . Seal Access 4 | . . . . . . 2 . 1 . . . . 1 . . . . . . . . . . . Unauthorized Hacks 36 | . 9 6 . 9 1 1 . 7 . . . . 2 . . . . . . . . . 1 . Terminals 29 | . 9 6 . 9 1 . . 4 . . . . . . . . . . . . . . . . Assimilate 2 | . . . . 2 . . . . . . . . . . . . . . . . . . . . Botnet 13 | . 4 1 . 4 1 . . 3 . . . . . . . . . . . . . . . . Skim 14 | . 5 5 . 3 . . . 1 . . . . . . . . . . . . . . . . Fabricators 4 | . . . . . . . . 1 . . . . 2 . . . . . . . . . 1 . Liberate 4 | . . . . . . . . 1 . . . . 2 . . . . . . . . . 1 . Repair Stations 1 | . . . . . . . . 1 . . . . . . . . . . . . . . . . Patch 1 | . . . . . . . . 1 . . . . . . . . . . . . . . . . Recycling Units 2 | . . . . . . 1 . 1 . . . . . . . . . . . . . . . . Tunnel 2 | . . . . . . 1 . 1 . . . . . . . . . . . . . . . . Scanalyzers . | . . . . . . . . . . . . . . . . . . . . . . . . . Garrison Access . | . . . . . . . . . . . . . . . . . . . . . . . . . Data Cores Recovered 1 | . . . . . . . . 1 . . . . . . . . . . . . . . . . Used . | . . . . . . . . . . . . . . . . . . . . . . . . . Hacking Detections 49 | . 5 8 . 6 4 4 . 10 . . . . 4 1 . . . 1 1 1 . . 3 1 Full Trace Events 1 | . . . . . . . . . . . . . . . . . . . 1 . . . . . Feedback Events . | . . . . . . . . . . . . . . . . . . . . . . . . . Feedback Blocked . | . . . . . . . . . . . . . . . . . . . . . . . . . Robot Schematics Acquired 10 | . . . . . . . . . . . 4 . 4 . . 2 . . . . . . . . Robots Built . | . . . . . . . . . . . . . . . . . . . . . . . . . Authchips . | . . . . . . . . . . . . . . . . . . . . . . . . . Time . | . . . . . . . . . . . . . . . . . . . . . . . . . Total Robot Build Rating . | . . . . . . . . . . . . . . . . . . . . . . . . . Part Schematics Acquired 41 | . . . . . . . . 2 . . 16 . 12 . . 11 . . . . . . . . Parts Built . | . . . . . . . . . . . . . . . . . . . . . . . . . Authchips . | . . . . . . . . . . . . . . . . . . . . . . . . . Time . | . . . . . . . . . . . . . . . . . . . . . . . . . Total Part Build Rating . | . . . . . . . . . . . . . . . . . . . . . . . . . Parts Repaired 2 | . . . . . . . . . . . . . . . . . . . 2 . . . . . Time 106 | . . . . . . . . . . . . . . . . . . . 106 . . . . . Parts Recycled . | . . . . . . . . . . . . . . . . . . . . . . . . . Recycled Matter 24 | . . . . . . . . . . . . . . . . . . . . . . . . 24 Retrieved Matter 24 | . . . . . . . . . . . . . . . . . . . . . . . . 24 Retrieved Components 10 | . 10 . . . . . . . . . . . . . . . . . . . . . . . Parts Scanalyzed . | . . . . . . . . . . . . . . . . . . . . . . . . . Part Schematics Acquired . | . . . . . . . . . . . . . . . . . . . . . . . . . Parts Damaged . | . . . . . . . . . . . . . . . . . . . . . . . . . Bothacking | -11 -10 -9 -9 -8 -8 -7 -7 -7 -7 -7 -7 -6 -6 -6 -6 -6 -5 -5 -5 -5 -5 -5 -4 -3 ------------ Run | Yrd Mat Mat Min Mat Sto Fac Was Fac Low Low Zio Pro Fac Low Low Dat Pro Fac Ext Cet Arc Hub Fac Res Used RIF Installer . | . . . . . . . . . . . . . . . . . . . . . . . . . Robots Hacked . | . . . . . . . . . . . . . . . . . . . . . . . . . Non-combat . | . . . . . . . . . . . . . . . . . . . . . . . . . Combat . | . . . . . . . . . . . . . . . . . . . . . . . . . Robot Hacks Applied . | . . . . . . . . . . . . . . . . . . . . . . . . . Relay Couplers Released 6 | . . . . . . . . . . . . . . . . . . . . . . 3 3 . Machine Destruction 3 | . . . . . . . . . . . . . . . . . . . . . . 3 . . Programmers 3 | . . . . . . . . . . . . . . . . . . . . . . . 3 . Fabnet Peak Effective % . | . . . . . . . . . . . . . . . . . . . . . . . . . Robots Rewired 7 | . . . . . . . . . . . . . . . . . . . 7 . . . . . Allies Hacked 1 | . . . . . . . . . . . . . . . . . . . 1 . . . . . Hacks Repelled . | . . . . . . . . . . . . . . . . . . . . . . . . . Allies | -11 -10 -9 -9 -8 -8 -7 -7 -7 -7 -7 -7 -6 -6 -6 -6 -6 -5 -5 -5 -5 -5 -5 -4 -3 -------- Run | Yrd Mat Mat Min Mat Sto Fac Was Fac Low Low Zio Pro Fac Low Low Dat Pro Fac Ext Cet Arc Hub Fac Res Total Allies 56 | . . . . 2 . . . . . . 4 . . . . . . 7 24 5 . 5 4 5 Largest Group 13 | . . . . 1 . . . . . . 4 4 . . . . . 4 9 13 10 12 2 2 Highest-Rated Group 850 | . . . . 10 . . . . . . 149 149 . . . . . 280 375 850 620 624 206 206 Highest-Rated Ally 159 | . . . . 10 . . . . . . 39 39 . . . . . 70 159 152 152 96 103 103 Zionite Dispatches 16 | . . . . . . . . . . . . . 1 . . . . 3 4 . . 3 1 4 Heavy 3 | . . . . . . . . . . . . . . . . . . . . . . . 1 2 Light 4 | . . . . . . . . . . . . . . . . . . 2 1 . . 1 . . Recon 2 | . . . . . . . . . . . . . 1 . . . . . . . . . . 1 Thermal Resupply 1 | . . . . . . . . . . . . . . . . . . . 1 . . . . . Kinetic Resupply 3 | . . . . . . . . . . . . . . . . . . . 2 . . 1 . . Explosive Resupply 1 | . . . . . . . . . . . . . . . . . . 1 . . . . . . Hover Resupply 1 | . . . . . . . . . . . . . . . . . . . . . . 1 . . Zionite Resupply 1 | . . . . . . . . . . . . . . . . . . . . . . . . 1 Total Orders 11 | . . . . . . . . . . . . . 1 . . . . 2 . 1 . 3 1 3 STAY 2 | . . . . . . . . . . . . . . . . . . 1 . . . . . 1 AID 1 | . . . . . . . . . . . . . . . . . . . . 1 . . . . DROP 5 | . . . . . . . . . . . . . . . . . . 1 . . . 3 . 1 EXPLORE 3 | . . . . . . . . . . . . . 1 . . . . . . . . . 1 1 Ally Attacks 406 | . . . . . . . . . . . . 3 . . . . . 31 155 49 26 104 26 12 Total Damage 10921 | . . . . . . . . . . . . 79 . . . . . 654 3171 1791 594 2726 1057 849 Kills 65 | . . . . . . . . . . . . 1 . . . . . 4 19 7 4 21 6 3 Allies Corrupted 8 | . . . . . . . . . . . . 3 . . . . . . 1 . . . 2 2 Allies Melted . | . . . . . . . . . . . . . . . . . . . . . . . . . Intel | -11 -10 -9 -9 -8 -8 -7 -7 -7 -7 -7 -7 -6 -6 -6 -6 -6 -5 -5 -5 -5 -5 -5 -4 -3 ------- Run | Yrd Mat Mat Min Mat Sto Fac Was Fac Low Low Zio Pro Fac Low Low Dat Pro Fac Ext Cet Arc Hub Fac Res Active Infowar (turns) 10835 | 38 1740 121 . 93 68 470 36 408 170 111 378 403 754 152 130 17 182 454 1389 592 772 622 1076 659 Optics 7569 | . . . . . . . . . . . 377 403 754 152 130 17 182 454 1389 592 772 622 1066 659 Sensors 6318 | . . . . . . 470 36 408 170 111 . . 738 152 130 17 182 454 826 574 772 622 656 . Traps 27 | . . . . 27 . . . . . . . . . . . . . . . . . . . . Seismic 1899 | 38 1740 121 . . . . . . . . . . . . . . . . . . . . . . Jamming 2 | . . . . . . . . . . . . . . . . . . . . . . . . 2 ECM 135 | . . . . 66 68 . . . . . 1 . . . . . . . . . . . . . Robot Analysis Total 4 | . 1 1 . . . . . 2 . . . . . . . . . . . . . . . . Derelict Logs Recovered 8 | . . . . . . . . . . 1 1 1 . 2 2 . 1 . . . . . . . Drone Launches 3 | . . . . . . . . . . . . . 1 . . . . . . . . . 1 1 Drone Recoveries 3 | . . . . . . . . . . . . . 1 . . . . . . . . . 1 1 Zionite Intel Received 13 | . . . . . . . . . . . . . 6 . . . . 3 . . . 1 1 2 Main Access 1 | . . . . . . . . . . . . . . . . . . 1 . . . . . . Emergency Access 1 | . . . . . . . . . . . . . . . . . . . . . . 1 . . Guard Positions 1 | . . . . . . . . . . . . . . . . . . . . . . . . 1 Component Stockpiles 1 | . . . . . . . . . . . . . . . . . . 1 . . . . . . Prototype Stockpiles 1 | . . . . . . . . . . . . . 1 . . . . . . . . . . . Component Schematics 1 | . . . . . . . . . . . . . 1 . . . . . . . . . . . Unaware Schematics 1 | . . . . . . . . . . . . . 1 . . . . . . . . . . . Unaware Analyses 3 | . . . . . . . . . . . . . 2 . . . . 1 . . . . . . Trap Installations 1 | . . . . . . . . . . . . . . . . . . . . . . . . 1 Depthwide Sectors/0 2 | . . . . . . . . . . . . . 1 . . . . . . . . . 1 . Exploration | -11 -10 -9 -9 -8 -8 -7 -7 -7 -7 -7 -7 -6 -6 -6 -6 -6 -5 -5 -5 -5 -5 -5 -4 -3 ------------- Run | Yrd Mat Mat Min Mat Sto Fac Was Fac Low Low Zio Pro Fac Low Low Dat Pro Fac Ext Cet Arc Hub Fac Res Turns Passed 13807 | 112 1868 1490 223 565 275 521 36 652 173 121 526 403 754 152 130 17 182 454 1389 592 772 622 1076 702 Spaces Moved 18232 | 58 873 677 77 1057 478 1447 86 1120 412 393 955 550 2111 524 371 81 514 1179 2059 287 85 352 1248 1238 Core 79 | 6 . . . . . . . . . . . . . . . . . . . . . . . 73 Treads 1848 | 52 600 581 74 . . . . . . . . . . . . . . . . 146 85 310 . . Legs 369 | . 273 96 . . . . . . . . . . . . . . . . . . . . . . Wheels . | . . . . . . . . . . . . . . . . . . . . . . . . . Hover 584 | . . . . . . . . . . . . . . . . . . . . . . 42 542 . Flight 15352 | . . . 3 1057 478 1447 86 1120 412 393 955 550 2111 524 371 81 514 1179 2059 141 . . 706 1165 Fastest Speed 6 | 50 160 120 240 28 23 23 23 23 23 23 23 23 20 20 6 20 20 17 6 19 160 36 20 25 Average Speed 42 | 148 169 176 242 28 23 23 23 23 23 23 23 23 21 20 19 20 20 17 19 94 160 145 47 27 Slowest Speed 314 | 160 260 240 314 28 28 26 23 23 23 23 23 23 24 90 20 20 20 95 94 160 160 160 110 50 Overloaded Moves 58 | . . . . . . . . . . . . . . . 12 . . . 4 . . 42 . . Propulsion Burnouts . | . . . . . . . . . . . . . . . . . . . . . . . . . Robots Hopped 54 | . . . . . 3 8 2 4 . . . . 14 . . . . . 4 . . 1 1 17 Potential Cave-ins . | . . . . . . . . . . . . . . . . . . . . . . . . . Cave-ins Triggered . | . . . . . . . . . . . . . . . . . . . . . . . . . Exploration Rate (%) 59 | 5 91 60 27 62 80 41 71 40 53 60 90 73 45 73 70 76 69 36 92 75 88 48 24 31 Regions Visited 24 Branch Regions 14 Pre-discovered Areas 16 | . . 1 . . . 1 . 1 . . . . 6 . . 1 . . . . . . 6 . Known Exits Taken 19 | . . . 1 1 1 . . 1 1 1 1 1 1 1 1 1 1 1 1 1 1 1 1 . Unknown Exits Taken 3 | 1 1 1 . . . . . . . . . . . . . . . . . . . . . . Scrap Searched 21 | . . . . . . . . . 1 1 4 5 . 4 1 . 5 . . . . . . . Spaces Dug 198 | . 14 7 . 18 3 11 . 7 5 5 . 8 22 19 5 . 6 28 1 . . 10 4 25 Terrain Destroyed 1244 | . 64 38 5 124 3 14 . 24 51 5 . 8 49 77 36 . 33 115 48 53 1 438 33 25 Melee 126 | . . . . 4 3 11 . 7 5 5 . 8 22 11 5 . 6 16 1 . . . 4 18 Projectile 114 | . 2 16 5 1 . . . . . . . . . . . . . 3 46 7 1 16 10 7 AOE 1004 | . 62 22 . 119 . 3 . 17 46 . . . 27 66 31 . 27 96 1 46 . 422 19 . Terrain Rammed . | . . . . . . . . . . . . . . . . . . . . . . . . . Walls Destroyed . | . . . . . . . . . . . . . . . . . . . . . . . . . Machines Disabled . | . . . . . . . . . . . . . . . . . . . . . . . . . Actions | -11 -10 -9 -9 -8 -8 -7 -7 -7 -7 -7 -7 -6 -6 -6 -6 -6 -5 -5 -5 -5 -5 -5 -4 -3 --------- Run | Yrd Mat Mat Min Mat Sto Fac Was Fac Low Low Zio Pro Fac Low Low Dat Pro Fac Ext Cet Arc Hub Fac Res Total 23020 | 74 1064 848 95 1232 577 1604 99 1458 470 411 1258 810 2307 543 413 80 579 1361 2889 565 717 421 1613 1532 Wait 3326 | . 30 39 . 53 34 128 14 253 36 11 290 248 118 . 30 . 56 91 547 238 620 7 232 251 Move 18107 | 57 872 676 76 1056 471 1431 82 1111 411 392 954 549 2084 523 370 80 513 1178 2050 286 84 349 1245 1207 Hop 48 | . . . . . 3 8 1 4 . . . . 12 . . . . . 4 . . 1 1 14 Pick Up 92 | 6 14 19 . 14 3 5 . 5 . . 3 1 1 . . . . 6 1 . . 6 7 1 Fast Attach 167 | 7 6 9 . 6 4 6 1 7 4 . 2 . 10 . . . . 12 30 8 6 7 35 7 Attach 43 | . 2 7 3 3 2 3 . 1 . . 1 . 2 . . . . 2 . . . 6 9 2 Detach 15 | . . 1 . . 1 1 . 1 . . . . 1 . . . . 2 2 1 . 1 2 2 Swap 144 | 1 21 10 1 15 5 2 . 6 3 . 3 . 7 4 4 . 2 11 24 6 . 5 6 8 Drop 179 | . 10 20 4 18 8 5 1 10 4 . 4 1 9 . . . . 15 23 7 5 14 11 10 Fire 475 | 3 107 64 11 35 16 2 . 5 7 3 . 3 8 5 4 . 2 16 89 11 1 24 47 12 Melee 281 | . . . . 32 30 13 . 30 5 5 1 8 55 11 5 . 6 28 14 . 1 1 18 18 Ram . | . . . . . . . . . . . . . . . . . . . . . . . . . Kick . | . . . . . . . . . . . . . . . . . . . . . . . . . Crush 5 | . 2 3 . . . . . . . . . . . . . . . . . . . . . . Escape Stasis 79 | . . . . . . . . 25 . . . . . . . . . . 54 . . . . . Rewire 51 | . . . . . . . . . . . . . . . . . . . 51 . . . . . Trap . | . . . . . . . . . . . . . . . . . . . . . . . . . Miscellaneous 8 | . . . . . . . . . . . . . . . . . . . . 8 . . . . Route ------- -11/Scrapyard -10/Materials (discovered 5 exits: *Mat x3 / [*Min] / [*Sub]) -9/Materials (discovered 4 exits: *Mat x3 / [*Min]) -9/Mines (discovered 2 exits: *Mat x2) -8/Materials (discovered 3 exits: *Fac x2 / *Sto) -8/Storage (discovered 2 exits: *Fac / Rec) -7/Factory (discovered 2 exits: *Fac / *Low) -7/Waste -7/Factory (discovered 3 exits: *Fac / *Low x2) -7/Lower Caves -7/Lower Caves -7/Zion -6/Proximity Caves -6/Factory (discovered 3 exits: *Fac x2 / *Low) -6/Lower Caves -6/Lower Caves (discovered 2 exits: *Fac / *Dat) -6/Data Miner -5/Proximity Caves -5/Factory (discovered 6 exits: *Fac x4 / *Upp / *Ext) -5/Extension (discovered 2 exits: *Fac / *Cet) -5/Cetus (discovered 2 exits: *Fac / *Arc) -5/Archives (discovered 3 exits: *Fac / *Hub x2) -5/Hub_04(d) -4/Factory -3/Research History --------- Turn | Location | Event 5 | -11/Scrapyard | Discovered new exit (range 16) 113 | -11/Scrapyard | Entered Materials 182 | -10/Materials | Discovered new exit (range 13) 331 | -10/Materials | Build established: Mutant 761 | -10/Materials | Discovered new exit (range 13) 1064 | -10/Materials | Discovered new exit (range 5) 1244 | -10/Materials | Discovered new exit (range 7) 1311 | -10/Materials | Core integrity fell below 50% 1775 | -10/Materials | Discovered new exit (range 10) 1981 | -10/Materials | Entered another Materials area 1981 | -9/Materials | Evolved 2 slots: Propulsion x1, Weapon x1 2445 | -9/Materials | Build established: Scavenger-Tank 2526 | -9/Materials | Discovered new exit (range 5) 2750 | -9/Materials | Discovered new exit (range 12) 2856 | -9/Materials | Build established: Scavenger-Mutant 2961 | -9/Materials | Identified exit to Materials 3010 | -9/Materials | Learned 4 Recycling zone layouts 3048 | -9/Materials | Learned location of 1 exit from Storage 3074 | -9/Materials | Learned 2 Storage zone layouts 3088 | -9/Materials | Learned Storage trap positions 3099 | -9/Materials | Learned location of 2 exits from Materials 3172 | -9/Materials | Learned location of Mines (-9) 3471 | -9/Materials | Entered Mines 3524 | -9/Mines | Build established: Mutant 3596 | -9/Mines | Found a hidden stash of uninstalled traps 3694 | -9/Mines | Entered Materials 3694 | -8/Materials | Evolved 2 slots: Propulsion x2 3695 | -8/Materials | Identified exit to Storage 3695 | -8/Materials | Identified exit to Factory 3927 | -8/Materials | Discovered exit to Factory (range 12) 3977 | -8/Materials | Destroyed 8 combat bots 3987 | -8/Materials | Build established: Sprinter 4207 | -8/Materials | Garrison activated, responded to threat 4259 | -8/Materials | Entered Storage 4261 | -8/Storage | Identified exit to Recycling 4262 | -8/Storage | Loaded intel: 16 trap records 4534 | -8/Storage | Entered Factory 4534 | -7/Factory | Evolved 2 slots: Utility x2 4775 | -7/Factory | Discovered new exit (range 15) 4780 | -7/Factory | Identified exit to Factory 4855 | -7/Factory | Discovered new exit (range 9) 4857 | -7/Factory | Identified exit to Lower Caves 5055 | -7/Factory | Sucked down chute 5055 | -7/Factory | Entered Waste 5060 | -7/Waste | Spotted C-40 Crusher 5065 | -7/Waste | Spotted C-40 Crusher 5065 | -7/Waste | Spotted C-40 Crusher 5065 | -7/Waste | Spotted C-40 Crusher 5070 | -7/Waste | EMP discharged 5080 | -7/Waste | Spotted C-40 Crusher 5088 | -7/Waste | Discovered new exit (range 16) 5088 | -7/Waste | Spotted C-40 Crusher 5091 | -7/Waste | Identified exit to Factory 5091 | -7/Waste | Entered Factory 5122 | -7/Factory | Discovered exit to Factory (range 7) 5416 | -7/Factory | Found Prototype Launcher 5438 | -7/Factory | Identified Rocket Array 5743 | -7/Factory | Entered Lower Caves 5896 | -7/Lower Caves | Found Alien Artifact 5896 | -7/Lower Caves | Identified Core Expander 5896 | -7/Lower Caves | Installed Core Expander, added new Power slot 5914 | -7/Lower Caves | Discovered new exit (range 8) 5915 | -7/Lower Caves | Identified exit to Lower Caves 5916 | -7/Lower Caves | Entered another Lower Caves area 5939 | -7/Lower Caves | Learned 8 Factory zone layouts 6022 | -7/Lower Caves | Spotted B-75 Beast 6036 | -7/Lower Caves | Discovered new exit (range 4) 6037 | -7/Lower Caves | Identified exit to Zion 6037 | -7/Lower Caves | Entered Zion 6046 | -7/Zion | System corruption cleaned by Quarantine Array 6060 | -7/Zion | Discovered new exit (range 11) 6065 | -7/Zion | Found GAL Module 6099 | -7/Zion | Learned Factory security intel 6127 | -7/Zion | Given the Hacking Drone Bay 6128 | -7/Zion | Found Prototype Device 6218 | -7/Zion | Met Imprinter 6223 | -7/Zion | Imprinted 6225 | -7/Zion | Declared Zion's savior 6270 | -7/Zion | Given A8's code to call for help 6563 | -7/Zion | Identified exit to Proximity Caves 6563 | -7/Zion | Entered Proximity Caves 6563 | -6/Proximity Caves | Accompanied by 4 allies 6566 | -6/Proximity Caves | Spotter reported a threat 6658 | -6/Proximity Caves | Spotter reported a threat 6682 | -6/Proximity Caves | Attracted the attention of an 0b10 checkpoint 6732 | -6/Proximity Caves | Spotter reported a threat 6741 | -6/Proximity Caves | Learned Factory terminal intel 6741 | -6/Proximity Caves | Discovered exit to Factory (range 7) 6966 | -6/Proximity Caves | Entered Factory 6966 | -6/Factory | Evolved 2 slots: Propulsion x1, Utility x1 6967 | -6/Factory | Identified exit to Factory 6969 | -6/Factory | Loaded intel: 26 terminal locations 6974 | -6/Factory | Retrieved Zion intel report: Depthwide Sectors/-6 7029 | -6/Factory | Discovered new exit (range 20) 7218 | -6/Factory | Retrieved Zion intel report: Unaware Analyses 7219 | -6/Factory | Zion Recon squad teleported in 7262 | -6/Factory | Build established: Scout 7285 | -6/Factory | Retrieved Zion intel report: Unaware Schematics 7302 | -6/Factory | Garrison activated, responded to threat 7316 | -6/Factory | Search patrols dispatched 7404 | -6/Factory | Retrieved Zion intel report: Component Schematics 7478 | -6/Factory | Retrieved Zion intel report: Prototype Stockpiles 7707 | -6/Factory | Identified exit to Lower Caves 7711 | -6/Factory | Retrieved Zion intel report: Unaware Analyses 7720 | -6/Factory | Entered Lower Caves 7740 | -6/Lower Caves | Learned 4 Factory zone layouts 7759 | -6/Lower Caves | Learned Factory trap positions 7761 | -6/Lower Caves | Spotted B-75 Beast 7869 | -6/Lower Caves | Discovered new exit (range 16) 7872 | -6/Lower Caves | Identified exit to Lower Caves 7872 | -6/Lower Caves | Entered another Lower Caves area 7875 | -6/Lower Caves | Attracted the attention of an 0b10 checkpoint 7875 | -6/Lower Caves | Discovered exit to Factory (range 16) 7913 | -6/Lower Caves | Learned Factory terminal intel 7973 | -6/Lower Caves | Learned Factory stockpile data 7991 | -6/Lower Caves | Discovered new exit (range 20) 7995 | -6/Lower Caves | Identified exit to Data Miner 8002 | -6/Lower Caves | Entered Data Miner 8002 | -6/Data Miner | Discovered new exit (range 6) 8005 | -6/Data Miner | Met Data Miner 8011 | -6/Data Miner | Learned location of Section 7 (-3) 8011 | -6/Data Miner | Acquired the access code to Warlord's prototype stash 8014 | -6/Data Miner | Received God Mode back door access code from Data Miner 8018 | -6/Data Miner | Identified exit to Proximity Caves 8019 | -6/Data Miner | Entered Proximity Caves 8050 | -5/Proximity Caves | Encountered a Derelict sapper outpost 8189 | -5/Proximity Caves | Learned Factory machine intel 8194 | -5/Proximity Caves | Discovered exit to Factory (range 14) 8201 | -5/Proximity Caves | Entered Factory 8201 | -5/Factory | Evolved 2 slots: Propulsion x1, Weapon x1 8202 | -5/Factory | Identified exit to Factory 8203 | -5/Factory | Loaded intel: 73 trap records 8205 | -5/Factory | Loaded intel: 299 machine locations 8206 | -5/Factory | Loaded intel: 27 terminal locations 8291 | -5/Factory | Identified Hacking Drone Bay 8303 | -5/Factory | Discovered exit to Factory (range 22) 8316 | -5/Factory | Retrieved Zion intel report: Component Stockpiles 8340 | -5/Factory | Retrieved Zion intel report: Main Access 8405 | -5/Factory | Incoming investigation squad redirected 8454 | -5/Factory | Zion Explosive Resupply teleported in 8506 | -5/Factory | Discovered new exit (range 8) 8507 | -5/Factory | Identified exit to Upper Caves 8521 | -5/Factory | Retrieved Zion intel report: Unaware Analyses 8522 | -5/Factory | Zion Light squad teleported in 8623 | -5/Factory | Zion Light squad teleported in 8637 | -5/Factory | Discovered new exit (range 13) 8640 | -5/Factory | Identified exit to Extension 8655 | -5/Factory | Entered Extension 8655 | -5/Extension | Accompanied by 4 allies 8682 | -5/Extension | P-70 Sage assimilated allied EH-4QP(z) 8690 | -5/Extension | Build established: Scavenger-Scout 8694 | -5/Extension | Disrupted transfer network 8696 | -5/Extension | Found Prototype Protection 8696 | -5/Extension | Identified Zio. Weapon Casing 8767 | -5/Extension | Zion Kinetic Resupply teleported in 8901 | -5/Extension | Repaired Adv. Sensor Array 9034 | -5/Extension | Rescued a captive Derelict 9040 | -5/Extension | Rescued a captive Derelict 9086 | -5/Extension | Rescued a captive Derelict 9087 | -5/Extension | Rescued a captive Derelict 9090 | -5/Extension | Rescued a captive Derelict 9092 | -5/Extension | Rescued a captive Derelict 9269 | -5/Extension | Spotted B-75 Beast 9344 | -5/Extension | Allies destroyed B-75 Beast 9346 | -5/Extension | Spotted B-75 Beast 9378 | -5/Extension | Destroyed B-75 Beast 9424 | -5/Extension | Lost 6 allies 9440 | -5/Extension | Zion Kinetic Resupply teleported in 9504 | -5/Extension | Lost 3 parts (1p1n1w) 9532 | -5/Extension | Zion Light squad teleported in 9557 | -5/Extension | Zion Thermal Resupply teleported in 9560 | -5/Extension | Incoming investigation squad redirected 9594 | -5/Extension | Rescued A7 9816 | -5/Extension | Repaired Field Propulsion Drive 9838 | -5/Extension | Rescued a captive Derelict 9841 | -5/Extension | Rescued a captive Derelict 9844 | -5/Extension | Rescued a captive Derelict 9845 | -5/Extension | Rescued a captive Derelict 9848 | -5/Extension | Incoming investigation squad redirected 9887 | -5/Extension | Found Prototype Protection 9887 | -5/Extension | Identified Med. Regenerative Plating 9895 | -5/Extension | Rescued a captive Derelict 9895 | -5/Extension | Rescued a captive Derelict 9961 | -5/Extension | Discovered exit to Factory (range 10) 9977 | -5/Extension | Discovered new exit (range 6) 10009 | -5/Extension | Identified exit to Cetus 10044 | -5/Extension | Entered Cetus 10044 | -5/Cetus | Accompanied by 8 allies (A7) 10049 | -5/Cetus | Acquired a Cetus Manufacturing Module code from A7 10049 | -5/Cetus | Spotted Cetus Guard 10049 | -5/Cetus | Spotted Cetus Guard 10049 | -5/Cetus | Spotted Cetus Guard 10049 | -5/Cetus | Spotted Cetus Guard 10057 | -5/Cetus | Destroyed Cetus Guard 10059 | -5/Cetus | Allies destroyed Cetus Guard 10064 | -5/Cetus | Allies destroyed Cetus Guard 10065 | -5/Cetus | Allies destroyed Cetus Guard 10102 | -5/Cetus | Started Cetus Manufacturing Module 10127 | -5/Cetus | Manufactured an Enhanced Grunt 10152 | -5/Cetus | Manufactured an Enhanced Grunt 10177 | -5/Cetus | Manufactured an Enhanced Grunt 10202 | -5/Cetus | Manufactured an Enhanced Grunt 10227 | -5/Cetus | Manufactured an Enhanced Grunt 10272 | -5/Cetus | Escorted A7 to Cetus Mainframe 10297 | -5/Cetus | Discovered new exit (range 23) 10331 | -5/Cetus | Spotted Cetus Guard 10331 | -5/Cetus | Spotted Cetus Guard 10331 | -5/Cetus | Spotted Cetus Guard 10331 | -5/Cetus | Spotted Cetus Guard 10340 | -5/Cetus | Discovered exit to Factory (range 23) 10351 | -5/Cetus | Allies destroyed Cetus Guard 10358 | -5/Cetus | Allies destroyed Cetus Guard 10359 | -5/Cetus | Allies destroyed Cetus Guard 10366 | -5/Cetus | Destroyed Cetus Guard 10378 | -5/Cetus | Scared off Revision 17 10383 | -5/Cetus | Lost 3 parts (3n) 10442 | -5/Cetus | Found Prototype Device 10442 | -5/Cetus | Identified Exp. Thermal Shield 10620 | -5/Cetus | Identified exit to Archives 10636 | -5/Cetus | Entered Archives 10636 | -5/Archives | Accompanied by 10 allies (A7) 10641 | -5/Archives | Build established: Commander-Assassin 10641 | -5/Archives | Received a hacking code to weaken MAIN.C 10675 | -5/Archives | Discovered new exit (range 23) 10685 | -5/Archives | Discovered exit to Factory (range 15) 10700 | -5/Archives | Discovered new exit (range 16) 10806 | -5/Archives | Identified exit to Hub_04(d) 10960 | -5/Archives | Build established: Scavenger-Assassin 11408 | -5/Archives | Entered Hub_04(d) 11408 | -5/Hub_04(d) | Accompanied by 8 allies 11444 | -5/Hub_04(d) | Zion Light squad teleported in 11486 | -5/Hub_04(d) | Discovered exit to Factory (range 7) 11558 | -5/Hub_04(d) | Retrieved Zion intel report: Emergency Access 11559 | -5/Hub_04(d) | Zion Kinetic Resupply teleported in 11626 | -5/Hub_04(d) | Lost 3 allies 11657 | -5/Hub_04(d) | Destroyed 7 combat bots 11868 | -5/Hub_04(d) | Zion Hover Resupply teleported in 11945 | -5/Hub_04(d) | Network Hub disabled 11945 | -5/Hub_04(d) | Garrison activated, responded to threat 11952 | -5/Hub_04(d) | Network Hub disabled 11969 | -5/Hub_04(d) | Spotted Lightning 11973 | -5/Hub_04(d) | Spotted Lightning 11974 | -5/Hub_04(d) | Spotted Lightning 11983 | -5/Hub_04(d) | System corruption reached 10% 11990 | -5/Hub_04(d) | Spotted Lightning 11993 | -5/Hub_04(d) | Spotted Lightning 11994 | -5/Hub_04(d) | Spotted Lightning 12008 | -5/Hub_04(d) | First assault squad dispatched 12014 | -5/Hub_04(d) | Core integrity fell below 50% 12028 | -5/Hub_04(d) | Incoming assault squad redirected 12030 | -5/Hub_04(d) | Entered Factory 12030 | -4/Factory | Evolved 2 slots: Propulsion x1, Utility x1 12049 | -4/Factory | Lost 5 parts (1p2n1u1w) 12280 | -4/Factory | First assault squad dispatched 12310 | -4/Factory | Build established: Assassin 12360 | -4/Factory | Retrieved Zion intel report: Depthwide Sectors/-4 12533 | -4/Factory | Zion Heavy squad teleported in 12692 | -4/Factory | Discovered new exit (range 21) 12710 | -4/Factory | Identified exit to Research 12756 | -4/Factory | Core integrity fell below 50% 12764 | -4/Factory | Core integrity fell below 20% 12764 | -4/Factory | System corruption reached 10% 12790 | -4/Factory | Lost 17 parts (2p6n3u6w) 12813 | -4/Factory | Enhanced Grunt warped into view, answering call for help 12818 | -4/Factory | Enhanced Grunt warped into view, answering call for help 13029 | -4/Factory | Lost 4 parts (1p3n) 13070 | -4/Factory | Incoming assault squad redirected 13106 | -4/Factory | Entered Research 13106 | -3/Research | Evolved 2 slots: Utility x1, Weapon x1 13109 | -3/Research | Zion Recon squad teleported in 13167 | -3/Research | Zion Zionite Resupply teleported in 13313 | -3/Research | Build established: Scavenger-Sprinter 13603 | -3/Research | Retrieved Zion intel report: Trap Installations 13604 | -3/Research | Zion Heavy squad teleported in 13740 | -3/Research | Retrieved Zion intel report: Guard Positions 13741 | -3/Research | Zion Heavy squad teleported in 13775 | -3/Research | Core integrity fell below 50% 13788 | -3/Research | Core integrity fell below 20% 13802 | -3/Research | Lost 8 parts (4n4u) 13808 | -3/Research | Destroyed by Y-72 Warden with Railgun Last Messages --------------- 13762_ O-24 Administrator: "IFF HANDSHAKE FAILED. SECURING TERMINAL." 13765_ Exp. Optical Array destroyed. 13768_ Penetrated by Slug. 13771_ Slug penetrates Wall. 13771_ VTOL Module destroyed. 13771_ Penetrated by Slug. 13771_ Slug penetrates Wall. 13771_ Slug penetrates A-15 Conveyor. 13771_ A-15 Conveyor destroyed. 13774_ Penetrated by Slug. 13774_ Slug penetrates Wall. 13774_ Penetrated by Slug. 13774_ Slug penetrates Wall. 13776_ System corrupted: Energy discharge (-34). 13777_ Acquired 16 matter. 13779_ Slug penetrates G-67 Veteran. 13784_ Knocked back. 13791_ System corrupted: Heat flow error (+223). 13798_ Door malfunctions. 13803_ Penetrated by Slug. Map ----- +----------------------------------------------------+ | ?????????????????????????????????????????????????? | | ?????????????????????????????????????????????????? | | ?????????????????????????????????????????????????? | | ?????????????????????????????????????????????????? | | ?????????????????????????????????????????????????? | | ?????????????????????????????????????????????????? | | ?????????????????????????????????????????????????? | | ?????????????????????????????????????????????????? | | ?????????????????????????????????????????????????? | | ?????????????????????????????????????????????????? | | ???????????????????????? ???????????????????????? | | ????????????????????????R ???????????????????????? | | ???????????????????????? ???????????????????????? | | ???????????????????????# ???????????????????????? | | ???????????????????????# ???????????????????????? | | ???????????????????????# ???????????????????????? | | ???????????????????????# ???????????????????????? | | ?????????????????????### ###????????????????????? | | ?????????????????????# #????????????????????? | | ?????????????????????# #????????????????????? | | ?????????????????????# #????????????????????? | | ?????????????????????# Y +????????????????????? | | ?????????????????????# k #????????????????????? | | ?????????????????????# #????????????????????? | | ??????????????????????# #?????????????????????? | | ??????????????????????# @ #?????????????????????? | | ??????????????????????# #?????????????????????? | | ??????????????????????# #?????????????????????? | | ??????????????????????# #?????????????????????? | | ??????????????????????# #?????????????????????? | | ??????????????????????# #???????????##########? | | ??????????????????????# #???????????# #? | | ??????????????????????# #???????????# #? | | ??????????????????????# #???????????# #? | | ??????????????????????# #???????????# #? | | ??????????????????????# #???????????# #? | | ??????????????????????# #???????????# *= ## | | ??????????????????????# #???????????# === # | | ??????????????????????# #???????????# [ # | | ????????############### #???????????# # | | ????????# ## p#################/#### | | ????????# ## # | | ????????# """ """ + # | | ????????# """ """ # + | | ????????# """ """ / # | | ????????# # #####+################ # | | ????????# # # ##########?# # | | ????????# """ """ + / ## #?# # | | #???????# """ """ # # !!! ## #?# # | | ######??# """ """ # # !!! ## "" #?# ## | +----------------------------------------------------+ Best States ------------- Heat Dissipation 66 Energy Generation 43 Energy Capacity 760 Matter Stores 300 Matter Capacity 300 Sight Range 23 Robot Scan Range 16 Terrain Scan Density 10 ECM Strength 1 Jamming Range 16 Additional Mass Support 9 Base Temperature (-) 200 Armor Coverage 400 Propulsion Shielding 66 Weapon Shielding 100 Evasion (%) 77 Recoil Reduction 6 Offensive Hacking 14 Item Schematics ----------------- Hacking Suite | -7/Factory | Hacked Enh. Optical Array | -7/Factory | Hacked Riot Gun | -7/Zion | Free Beamcaster | -7/Zion | Free Hvy. Riot Gun | -7/Zion | Free Ripper | -7/Zion | Free Spear | -7/Zion | Archive Energy Well | -7/Zion | Archive Imp. Core Shielding | -7/Zion | Archive Xenon Bombardment Thruster | -7/Zion | Archive Imp. Hacking Suite | -7/Zion | Archive Imp. Melee Analysis Suite | -7/Zion | Archive Adv. Plasma Cannon | -7/Zion | Archive Lyr. Heavy Armor Plating | -7/Zion | Archive Thermal Shield | -7/Zion | Archive Plasma Cannon | -7/Zion | Archive Adv. Terrain Scanner | -7/Zion | Archive System Restoration Module | -7/Zion | Archive Mace | -6/Factory | Z-intel Imp. Thermal Generator | -6/Factory | Z-intel Imp. Medium Treads | -6/Factory | Z-intel System Shield | -6/Factory | Z-intel IFF Parser | -6/Factory | Z-intel Cesium-ion Thruster | -6/Factory | Z-intel Gauss Cannon | -6/Factory | Z-intel Imp. Gravmag System | -6/Factory | Z-intel Adv. Terrain Scan Processor | -6/Factory | Z-intel Imp. Cryofiber Web | -6/Factory | Z-intel Imp. Trap Scanner | -6/Factory | Z-intel Med. Treads | -6/Factory | Z-intel Combat Drone Bay | -6/Data Miner | Free Lgt. Regenerative Plating | -6/Data Miner | Free Enh. Flexi-carbon Leg | -6/Data Miner | Free Prc. Energy Filter | -6/Data Miner | Free Plasma Sword | -6/Data Miner | Free Imp. Gyrokinetic Inverter | -6/Data Miner | Free Lrn. Terrain Scanner | -6/Data Miner | Free Force Lance | -6/Data Miner | Free Med. Armored Exoskeleton | -6/Data Miner | Free Imp. Armor Integrity Analyzer | -6/Data Miner | Free Antigrav Array | -6/Data Miner | Free Robot Schematics ------------------ R-06 Scavenger | -7/Zion | Archive B-48 Gladiator | -7/Zion | Archive S-27 Virus | -7/Zion | Archive X-77 Beamer | -7/Zion | Archive K-01 Serf | -6/Factory | Z-intel R-10 Processor | -6/Factory | Z-intel G-50 Soldier | -6/Factory | Z-intel W-25 Informer | -6/Factory | Z-intel Y-54 Guardian | -6/Data Miner | Free A-15 Conveyor | -6/Data Miner | Free Fabricated ------------ Nothing Repaired ---------- Adv. Sensor Array | 16% | -5/Extension Field Propulsion Drive | 10% | -5/Extension Alien Tech Used ----------------- Core Expander Achievements -------------- None Challenges ------------ None Game ------ Seed OpticalImpactLauncher Manual? 0 Play Time 04:32:46 Cumulative 285.9 hours Start 2025.08.19 @ 06:40:17 End 2025.08.20 @ 18:13:40 Sessions 11 Manual Loads 0 Difficulty Rogue Special Mode None Game No. 127 Rogue 106 Adventurer 21 Explorer 0 Win Type - Total 13 Types 9/0/3/1/0/0/0/0/0/0 Lore% 49 Gallery% 68 Achievement% 61 Wizard Run 0 Options --------- Layout 1 ASCII 0 Keyboard 0 Movement Mouse Keybinds 0 Fullscreen 2 Font 32/SmallcapsGlow Map View 77x35 Zoom Use 0% Tactical HUD 1 Map Filters NONE Filters NONE Steam 1 RUN: 2c2e3ed4-2c84-41db-bb17-85c6027c2de6